Cogmind - Beta 12 @@@ ROGUE MODE // 2023.05.13 @ 16:40:56 Player: Mr Goldstein Result: Self-destructed Performance ------------- Evolutions (1) 500 Regions Visited (5) 1000 Robots Destroyed (3) 15 Value Destroyed (131) 131 Prototype IDs (24) 480 Alien Tech Used (0) 0 Bonus (500) 500 TOTAL SCORE: 2626 Bonus ------- Pacifist 200 Aligned with FarCom 300 Cogmind --------- Core Integrity 192/400 Matter 296/300 Energy 99/100 System Corruption 0% Temperature Cool (2) Movement Flying (37) Location -9/Exiles Parts ------- > --- POWER (1) -------- (None) > --- PROPULSION (3) --- Improved Flight Unit Improved Flight Unit > --- UTILITY (3) ------ Hardened Light Armor Plating > --- WEAPON (2) ------- EMP Blaster > --- INVENTORY (5) ---- Improved Flight Unit Improved Flight Unit Improved Flight Unit Energy Filter Heavy Flail Peak State ------------ > --- POWER ------------ (None) > --- PROPULSION ------- Improved Flight Unit Improved Flight Unit Improved Flight Unit > --- UTILITY ---------- (None) > --- WEAPON ----------- Rocket Launcher > --- INVENTORY -------- Improved Flight Unit Improved Flight Unit Improved Flight Unit Improved Flight Unit Heavy Flail [Rating: 12] Favorites ----------- Power None Propulsion Improved Flight Unit Flight Unit Improved Flight Unit Utility Hardened Light Armor Plating Protection Hardened Light Armor Plating Weapon EMP Blaster Launcher EMP Blaster Build | -11 -10 -10 -9 -9 -9 ------- Run | Jun Mat Min Mat Min Exi Slots Evolved 2 | . . . 2 . . Power . | . . . . . . Propulsion 1 | . . . 1 . . Utility 1 | . . . 1 . . Weapon . | . . . . . . Parts Attached 9 | . . . 4 5 . Power . | . . . . . . Engine . | . . . . . . Core . | . . . . . . Reactor . | . . . . . . Propulsion 5 | . . . 3 2 . Treads . | . . . . . . Leg . | . . . . . . Wheel . | . . . . . . Hover . | . . . . . . Flight 5 | . . . 3 2 . Utility 1 | . . . . 1 . Device . | . . . . . . Storage . | . . . . . . Processor . | . . . . . . Hackware . | . . . . . . Protection 1 | . . . . 1 . Artifact . | . . . . . . Weapon 3 | . . . 1 2 . Energy Gun . | . . . . . . Energy Cannon . | . . . . . . Ballistic Gun . | . . . . . . Ballistic Cannon . | . . . . . . Launcher 3 | . . . 1 2 . Special Weapon . | . . . . . . Impact Weapon . | . . . . . . Slashing Weapon . | . . . . . . Piercing Weapon . | . . . . . . Special Melee Weapon . | . . . . . . Unidentified Prototypes 1 | . . . 1 . . Parts Lost 5 | . . . . 5 . Power . | . . . . . . Propulsion 3 | . . . . 3 . Utility . | . . . . . . Weapon 2 | . . . . 2 . Highest Loss Streak 3 | . . . . 3 . To Critical Strikes . | . . . . . . Average Slot Usage (%) 22 | . . . 22 29 44 Flight 16 | . . . 19 22 22 Protection 2 | . . . . 1 11 Launcher 4 | . . . 2 5 11 Naked Turns 107 | . 70 23 14 . . Heaviest Build 9 | . . . 4 9 9 Greatest Support 15 | 3 3 3 15 15 10 Greatest Overweight (x) . | . . . . . . Average Overweight (x) . | . . . . . . Largest Inventory Capacity 5 | 5 5 5 5 5 5 Average Capacity 5 | 5 5 5 5 5 5 Most Carried 5 | . . 1 5 5 5 Average Carried 3 | . . . 3 4 5 Final Capacity 5 | 5 5 5 5 5 5 Final Carried 5 | . . 1 5 5 5 Class Distribution -------------------- 100% | Mutant Dominant Class ---------------- Mutant | -10/Materials Mutant | -10/Mines Mutant | -9/Materials Mutant | -9/Mines Mutant | -9/Exiles Resources | -11 -10 -10 -9 -9 -9 ----------- Run | Jun Mat Min Mat Min Exi Matter Collected 303 | 200 . . 30 73 . Remotely . | . . . . . . Salvage Created 84 | . . . . 84 . Parts 7 | . . . . 7 . Haulers Intercepted . | . . . . . . Recyclers Shooed . | . . . . . . Parts Field Recycled . | . . . . . . Retrieved Matter . | . . . . . . Parts Self-Destructed . | . . . . . . Prevented . | . . . . . . Kills | -11 -10 -10 -9 -9 -9 ------- Run | Jun Mat Min Mat Min Exi Combat Hostiles Destroyed 3 | . . . . 3 . AOE 3 | . . . . 3 . Classes Destroyed 2 | . . . . 2 . Swarmer 1 | . . . . 1 . Grunt 2 | . . . . 2 . Best Kill Streak 2 | . . . . 2 . Combat Bots Only 2 | . . . . 2 . Max Kills in Single Turn 2 | . . . . 2 . Gunslinging . | . . . . . . Exploded 2 | . . . . 2 . Melee . | . . . . . . Uniques/NPCs Destroyed . | . . . . . . Combat | -11 -10 -10 -9 -9 -9 -------- Run | Jun Mat Min Mat Min Exi Damage Taken 591 | . 112 . 27 452 . Core 320 | . 112 . . 208 . Absorbed by Shields . | . . . . . . Core Remaining (%) 77 | 100 . 55 . . . Volleys Fired 4 | . . . . 4 . Largest 1 | . . . . 1 . Hottest 33 | . . . . 33 . Shots Fired 4 | . . . . 4 . Gun . | . . . . . . Cannon . | . . . . . . Launcher 4 | . . . . 4 . Special . | . . . . . . Kinetic . | . . . . . . Thermal . | . . . . . . Explosive 3 | . . . . 3 . Electromagnetic 1 | . . . . 1 . Robot Hit Streak 1 | . . . . 1 . Robot Miss Streak 1 | . . . . 1 . Penetration Max . | . . . . . . Secondary Targets . | . . . . . . Shots Hit Robots 2 | . . . . 2 . Core Hits 6 | . . . . 6 . Critical Kills . | . . . . . . Critical Parts Destroyed . | . . . . . . Critical Strikes . | . . . . . . Melee Attacks . | . . . . . . Impact . | . . . . . . Slashing . | . . . . . . Piercing . | . . . . . . Sneak Attacks . | . . . . . . Combat Hostiles . | . . . . . . Follow-up Attacks . | . . . . . . Damage Inflicted 256 | . 15 . . 241 . Guns . | . . . . . . Cannons . | . . . . . . Explosions 241 | . . . . 241 . Melee . | . . . . . . Ramming 15 | . 15 . . . . Kinetic . | . . . . . . Thermal 81 | . . . . 81 . Explosive 124 | . . . . 124 . Electromagnetic 36 | . . . . 36 . Impact . | . . . . . . Slashing . | . . . . . . Piercing . | . . . . . . Highest Corruption . | . . . . . . Average Corruption . | . . . . . . Corruption Purged . | . . . . . . Corruption Blocked . | . . . . . . Overload Shots . | . . . . . . Overflow Damage 3 | . . . . 3 . Projectiles . | . . . . . . Explosions 3 | . . . . 3 . Melee . | . . . . . . Knockbacks 1 | . 1 . . . . Impact 1 | . 1 . . . . Kinetic . | . . . . . . Secondary . | . . . . . . Self-Inflicted Damage 87 | . 6 . . 81 . Shots 2 | . . . . 2 . Rammed 4 | . 4 . . . . Targets Rammed 4 | . 4 . . . . Kicked . | . . . . . . Crushed . | . . . . . . Highest Temperature 8 | . 8 . . . . Average Temperature 8 | . 8 . . . . Received Heat Transfer 210 | . 75 . 6 129 . Siege Activations . | . . . . . . Robots Corrupted . | . . . . . . Combat Hostiles . | . . . . . . Parts Fried . | . . . . . . Impact Corruptions . | . . . . . . Robots Melted . | . . . . . . Combat Hostiles . | . . . . . . Parts Melted . | . . . . . . Heat Transferred 100 | . . . . 100 . Parts Sabotaged . | . . . . . . Parts Stolen . | . . . . . . Parts Stripped . | . . . . . . Power Chain Reactions . | . . . . . . Missiles Intercepted . | . . . . . . Alert | -11 -10 -10 -9 -9 -9 ------- Run | Jun Mat Min Mat Min Exi Peak Influence 234 | . 60 23 38 234 . Initial 23 | . . 23 8 14 . Average 58 | . 31 23 24 89 . Maximum Alert Level 1 | . . . . 1 . Low Security (%) 96 | 100 100 100 100 93 . Level 1 3 | . . . . 6 . Level 2 . | . . . . . . Level 3 . | . . . . . . Level 4 . | . . . . . . Level 5 . | . . . . . . High Security . | . . . . . . Max Security . | . . . . . . Squads Dispatched 4 | . 2 . 1 1 . Investigation 1 | . . . . 1 . Extermination . | . . . . . . Reinforcement 3 | . 2 . 1 . . Assault . | . . . . . . Garrison . | . . . . . . Intercept . | . . . . . . Searches Triggered . | . . . . . . Construction Impeded . | . . . . . . Haulers Reinforced . | . . . . . . Active Scanning Responses . | . . . . . . Cargo Convoy Interrupts . | . . . . . . Stealth | -11 -10 -10 -9 -9 -9 --------- Run | Jun Mat Min Mat Min Exi Distress Signals . | . . . . . . Communications Jammed . | . . . . . . Distress Signals . | . . . . . . Times Spotted 51 | . 5 . 6 40 . Peak Tracking Total 23 | . 3 . 5 23 . Tactical Retreats 8 | . 1 . . 7 . Traps | -11 -10 -10 -9 -9 -9 ------- Run | Jun Mat Min Mat Min Exi Traps Triggered . | . . . . . . Indirectly . | . . . . . . Trap Hack Attempts . | . . . . . . Triggered . | . . . . . . Disarmed . | . . . . . . Reprogrammed . | . . . . . . Reused . | . . . . . . Traps Extracted . | . . . . . . Installed . | . . . . . . Triggered . | . . . . . . Machines | -11 -10 -10 -9 -9 -9 ---------- Run | Jun Mat Min Mat Min Exi Machines Disabled 4 | . . . . 4 . Max in Single Turn 4 | . . . . 4 . Machines Repaired . | . . . . . . Machines Sabotaged . | . . . . . . Overloaded Fab Kills . | . . . . . . Hacking | -11 -10 -10 -9 -9 -9 --------- Run | Jun Mat Min Mat Min Exi Machines Accessed 3 | . . 1 . 1 1 Terminals . | . . . . . . Fabricators . | . . . . . . Repair Stations . | . . . . . . Recycling Units . | . . . . . . Scanalyzers . | . . . . . . Garrison Access . | . . . . . . Total Hacks 3 | . . 1 . 1 1 Successful 3 | . . 1 . 1 1 Failed . | . . . . . . Catastrophic . | . . . . . . Database Lockouts . | . . . . . . Manual 1 | . . . . . 1 Terminals . | . . . . . . Fabricators . | . . . . . . Repair Stations . | . . . . . . Recycling Units . | . . . . . . Scanalyzers . | . . . . . . Garrison Access . | . . . . . . Terminal Hacks 3 | . . 1 . 1 1 Open Door 2 | . . 1 . 1 . EX-Prototype ID Bank 1 | . . . . . 1 Fabricator Hacks . | . . . . . . Repair Station Hacks . | . . . . . . Recycling Unit Hacks . | . . . . . . Scanalyzer . | . . . . . . Garrison Access Hacks . | . . . . . . Unauthorized Hacks . | . . . . . . Terminals . | . . . . . . Fabricators . | . . . . . . Repair Stations . | . . . . . . Recycling Units . | . . . . . . Scanalyzers . | . . . . . . Garrison Access . | . . . . . . Data Cores Recovered . | . . . . . . Used . | . . . . . . Hacking Detections . | . . . . . . Full Trace Events . | . . . . . . Feedback Events . | . . . . . . Feedback Blocked . | . . . . . . Robot Schematics Acquired . | . . . . . . Robots Built . | . . . . . . Authchips . | . . . . . . Time . | . . . . . . Total Robot Build Rating . | . . . . . . Part Schematics Acquired . | . . . . . . Parts Built . | . . . . . . Authchips . | . . . . . . Time . | . . . . . . Total Part Build Rating . | . . . . . . Parts Repaired . | . . . . . . Time . | . . . . . . Parts Recycled . | . . . . . . Recycled Matter . | . . . . . . Retrieved Matter . | . . . . . . Retrieved Components . | . . . . . . Parts Scanalyzed . | . . . . . . Part Schematics Acquired . | . . . . . . Parts Damaged . | . . . . . . Bothacking | -11 -10 -10 -9 -9 -9 ------------ Run | Jun Mat Min Mat Min Exi Used RIF Installer . | . . . . . . Robots Hacked . | . . . . . . Non-combat . | . . . . . . Combat . | . . . . . . Robot Hacks Applied . | . . . . . . Relay Couplers Released . | . . . . . . Fabnet Peak Effective % . | . . . . . . Robots Rewired . | . . . . . . Allies Hacked . | . . . . . . Hacks Repelled . | . . . . . . Allies | -11 -10 -10 -9 -9 -9 -------- Run | Jun Mat Min Mat Min Exi Total Allies . | . . . . . . Largest Group . | . . . . . . Highest-Rated Group . | . . . . . . Highest-Rated Ally . | . . . . . . Total Orders . | . . . . . . Ally Attacks . | . . . . . . Total Damage . | . . . . . . Kills . | . . . . . . Allies Corrupted . | . . . . . . Allies Melted . | . . . . . . Intel | -11 -10 -10 -9 -9 -9 ------- Run | Jun Mat Min Mat Min Exi Robot Analysis Total . | . . . . . . Derelict Logs Recovered 2 | . . 1 . 1 . Drone Launches . | . . . . . . Drone Recoveries . | . . . . . . Exploration | -11 -10 -10 -9 -9 -9 ------------- Run | Jun Mat Min Mat Min Exi Turns Passed 370 | 13 70 23 51 172 41 Spaces Moved 838 | 26 131 43 106 422 110 Core 227 | 26 131 43 27 . . Treads . | . . . . . . Legs . | . . . . . . Wheels . | . . . . . . Hover . | . . . . . . Flight 611 | . . . 79 422 110 Fastest Speed 34 | 50 50 50 34 34 37 Average Speed 40 | 50 50 50 38 36 37 Slowest Speed 50 | 50 50 50 50 40 37 Overloaded Moves . | . . . . . . Propulsion Burnouts . | . . . . . . Robots Hopped 15 | . . . 4 11 . Cave-ins Triggered . | . . . . . . Exploration Rate (%) 31 | 3 33 23 17 70 40 Regions Visited 5 Branch Regions 3 Pre-discovered Areas . | . . . . . . Known Exits Taken 1 | . . . 1 . . Unknown Exits Taken 4 | 1 1 1 . 1 . Scrap Searched 2 | . . . . 2 . Spaces Dug . | . . . . . . Terrain Destroyed 47 | . . . . 47 . Melee . | . . . . . . Projectile . | . . . . . . AOE 47 | . . . . 47 . Terrain Rammed . | . . . . . . Walls Destroyed . | . . . . . . Machines Disabled . | . . . . . . Actions | -11 -10 -10 -9 -9 -9 --------- Run | Jun Mat Min Mat Min Exi Total 841 | 25 134 43 109 420 110 Wait . | . . . . . . Move 804 | 25 130 42 98 399 110 Hop 14 | . . . 3 11 . Pick Up 6 | . . 1 4 1 . Fast Attach 8 | . . . 4 4 . Attach 1 | . . . . 1 . Detach . | . . . . . . Swap . | . . . . . . Drop . | . . . . . . Fire 4 | . . . . 4 . Melee . | . . . . . . Ram 4 | . 4 . . . . Kick . | . . . . . . Crush . | . . . . . . Escape Stasis . | . . . . . . Rewire . | . . . . . . Trap . | . . . . . . Miscellaneous . | . . . . . . Route ------- -11/Junkyard -10/Materials (discovered 2 exits: [*Mat] / *Min) -10/Mines -9/Materials (discovered 2 exits: Mat / *Min) -9/Mines (discovered 3 exits: *Mat x2 / *Exi) -9/Exiles (discovered 1 exit: [*Min]) History --------- Turn | Location | Event 2 | -11/Junkyard | Discovered new exit (range 16) 14 | -11/Junkyard | Entered Materials 41 | -10/Materials | Discovered new exit (range 10) 76 | -10/Materials | Discovered new exit (range 15) 84 | -10/Materials | Entered Mines 88 | -10/Mines | Learned 8 Materials zone layouts 98 | -10/Mines | Discovered new exit (range 7) 100 | -10/Mines | Met a Derelict who couldn't figure out how to use a Trap Extractor 107 | -10/Mines | Entered Materials 107 | -9/Materials | Evolved 2 slots: Propulsion x1, Utility x1 108 | -9/Materials | Identified exit to Materials 108 | -9/Materials | Identified exit to Mines 158 | -9/Materials | Entered Mines 165 | -9/Mines | Assembled infested the area 180 | -9/Mines | Learned location of 1 exit from Materials 195 | -9/Mines | Discovered exit to Materials (range 10) 244 | -9/Mines | Received a Rocket Launcher from a helpful Derelict 246 | -9/Mines | Lost 3 parts (2n1w) 299 | -9/Mines | Discovered exit to Materials (range 11) 304 | -9/Mines | Met a Derelict shopkeep closing up shop 320 | -9/Mines | Core integrity fell below 50% 325 | -9/Mines | Build established: Mutant 329 | -9/Mines | Deemed a non-threat by the Exiles lab entrance 329 | -9/Mines | Discovered new exit (range 5) 330 | -9/Mines | Entered Exiles 335 | -9/Exiles | Discovered new exit (range 15) 340 | -9/Exiles | Met 8R-AWN 345 | -9/Exiles | Met EX-HEX 356 | -9/Exiles | Met EX-BIN 361 | -9/Exiles | Aligned with FarCom system 361 | -9/Exiles | Given EX-Vault access code 370 | -9/Exiles | Opened EX-Vault 371 | -9/Exiles | Self-destructed Last Messages --------------- Modified TNC 0b10 Alert Chip Cloak of Protection Skeleton Box Trap Reconfigurator Supersonic Drone Bay Army-in-a-Box PSU Rigger Chronowheel AWS/Thermal Latent Energy Streamer Gui. Plasma Cannon Firepult YOLO Cannon AWS/Gauss XL Autogun Array AWS/Autocannon Field Lobotomy Kit Longsword +1 Deploy-a-Sentry Map ----- +----------------------------------------------------+ | | | | | | | | | | | | | | | | | | | | | | | | | | | | | | | | | | | | | | | | | ???????????????????#########?????????????????????? | | ???????????????????#[ ] ! #?????????????????????? | | ???????????????????# #?????????????????????? | | ???????????????????# #?????????????????????? | | ???????????????????# X#?????????????????????? | | ???????????????????## @#??????????????????????? | | ???????????????????#X #??????????????????????? | | ???????????????????## #??????????????????????? | | ????????????????????# #??????????????????????? | | ????????????????????# #???###????????????????? | | ????????????????????# #??"""""???????????????? | | ????????????????????# ## """???????????????? | | ????????????????????# X""???????????????? | | ????????????????????# ## """???????????????? | | ??????????????####??# #??"""""???????????????? | | ??????????????"""""?# #???#??????????????????? | | ?????????????"""" ## #??????????????????????? | | ?????????????""X" #??????????????????????? | | ????????????#" #??????????????????????? | | ????????????#" ## #??????????????????????? | | ????????????#""""""?# #?#########????????????? | | ?????????????#"###??# #?#"""""""#????????????? | | ????????????????????# #?#"""""""#????????????? | | ????????????????????# #?#"""""""#????????????? | | ???????????????????## ###"" """"#????????????? | | ???????????????????#" """"#????????????? | | ???????????????????#" """#????????????? | | ???????????????????#" """#????????????? | | ???????????????????#" """#????????????? | | ???????????????????#" """#????????????? | +----------------------------------------------------+ Best States ------------- Heat Dissipation 28 Energy Generation 5 Energy Capacity 100 Matter Stores 300 Matter Capacity 300 Sight Range 16 Terrain Scan Density 10 Armor Coverage 150 Evasion (%) 63 Item Schematics ----------------- None Robot Schematics ------------------ None Fabricated ------------ Nothing Alien Tech Used ----------------- None Achievements -------------- None Challenges ------------ None Game ------ Seed RemoteCompactWings Manual? 0 Play Time 00:05:55 Cumulative 204.1 hours Start 2023.05.13 @ 16:35:11 End 2023.05.13 @ 16:40:56 Sessions 1 Manual Loads 0 Difficulty Rogue Special Mode None Game No. 577 Rogue 577 Adventurer 0 Explorer 0 Win Type - Total 9 Types 7/0/1/1/0/0/0/0/0 Lore% 80 Gallery% 78 Achievement% 71 Wizard Run 0 Options --------- ASCII 0 Keyboard 0 Movement Numpad Keybinds 0 Fullscreen 1 Font 16/SmallcapsGlow Map View 75x55 Tactical HUD 1 Map Filters NONE Filters NONE Steam 1 RUN: c31f1538-0c69-4a7d-be17-0f6382b72395